Workbook

Sheet Proof
D1: City | E1: State | F1: Adjusted | H1: State | I1: Adjusted | K1: Bad | L1: Adjusted | N1: City | O1: Adjusted | Q1: Conversion | R1: Natural Gas | S1: Effective | U1: Applicable
B2: Tax | D2: Ordinance | E2: Utility Tax | F2: Ordinance Rate | H2: Filing Fee | I2: Ordinance Rate | K2: Debts | L2: Ordinance Rate | N2: Tax | O2: Ordinance Rate | Q2: Factor | R2: Conversion | S2: City Tax Rate | U2: PSE
A3: City | B3: Code | C3: City | D3: Tax Rate | E3: Deduction | F3: Electric | G3: Gas | H3: Deduction | I3: Electric | J3: Gas | K3: Deduction | L3: Electric | M3: Gas | N3: Deduction | O3: Electric | P3: Gas | Q3: Electric | R3: Gas | S3: Electric | T3: Gas | U3: Service
D4: =+'Muni.Tax- E'!K1 -> 0.042 | E4: =+'Muni.Tax- E'!C9 -> N | F4: =IF(E4="N",D4,((1-$D$11)*D4)) -> 0.042 | G4: =IF(E4="N",D4,((1-$I$11)*D4)) -> 0.042 | H4: =+'Muni.Tax- E'!C10 -> N | I4: =IF(H4="N",F4,((1-$D$10)*F4)) -> 0.042 | J4: =IF(H4="N",G4,((1-$I$10)*G4)) -> 0.042 | K4: =+'Muni.Tax- E'!C8 -> Y | L4: =IF(K4="Y",I4,I4/(1-$D$9)) -> 0.042 | M4: =IF(K4="Y",J4,J4/(1-$I$9)) -> 0.042 | N4: =+'Muni.Tax- E'!C11 -> Y | O4: =IF(N4="N",L4,((L4/(1+D4)))) -> 0.04030710173 | P4: =IF(N4="N",M4,((M4/(1+D4)))) -> 0.04030710173 | Q4: =+O4/$F$14 -> 0.04210648005 | R4: =P4/$K$14 -> 0.04209706911 | S4: =Q4/(1-Q4) -> 0.04395737018 | T4: 0.04394711379 | U4: Gas /Electric
S5: =+'Muni.Tax- E'!I3 -> 0.0439580372 | T5: =+'Muni.Tax- G'!I3 -> 0.04394750151
D7: Electric | I7: Gas
D8: Actual Rate | E8: With Bad Debts | F8: w/o Bad Debts | I8: Actual Rate | J8: With Bad Debts | K8: w/o Bad Debts
B9: Bad Debts | D9: =+'3.04 E'!E12 -> 0.007197 | E9: =+D9 -> 0.007197 | I9: =+'3.05 G'!E12 -> 0.004198 | J9: =+I9 -> 0.004198
B10: Annual Filing Fee | D10: =+'Annual Filing Fee'!A1 -> 0.004 | E10: =+D10-D10*$D$9 -> 0.003971212 | F10: =+D10 -> 0.004 | I10: =+'Annual Filing Fee'!A1 -> 0.004 | J10: =+I10-I10*$I$9 -> 0.003983208 | K10: =+I10 -> 0.004
B11: State Utility Tax | D11: =+'Pub Util Tax'!B22 -> 0.038734 | E11: =+D11-D11*$D$9 -> 0.0384552314 | F11: =+D11 -> 0.038734 | I11: =+'Pub Util Tax'!B24 -> 0.03852 | J11: =+I11-I11*$I$9 -> 0.03835829304 | K11: =+I11 -> 0.03852
B12: Sum | D12: =SUM(D9:D11) -> 0.049931 | E12: =SUM(E9:E11) -> 0.0496234434 | F12: =SUM(F9:F11) -> 0.042734 | I12: =SUM(I9:I11) -> 0.046718 | J12: =SUM(J9:J11) -> 0.04653950104 | K12: =SUM(K9:K11) -> 0.04252
B14: Conversion Factor = 1 - Sum Above | D14: =1-D12 -> 0.950069 | E14: =1-E12 -> 0.9503765566 | F14: =1-F12 -> 0.957266 | I14: =1-I12 -> 0.953282 | J14: =1-J12 -> 0.953460499 | K14: =1-K12 -> 0.95748

Sheet Muni.Tax- E
F1: Energy | G1: E | H1: Ordinance City Tax Rate = | K1: 0.042
A3: Total Bill Excluding City Tax and City Tax Related Additional Revenue | D3: 1000 | F3: Calculated Grossed-up City Tax Rate = | I3: 0.0439580372
A4: City Tax and City Tax Related Additional Revenue | D4: =ROUND(D3*I14,2) -> 43.96
A5: Gross Taxable Revenue | D5: =D3+D4 -> 1043.96 | H5: Electric State Utility Tax Rate = | I5: =+'Pub Util Tax'!D3 -> 0.038734
H6: Natural Gas State Utility Tax Rate = | I6: =+'Pub Util Tax'!D4 -> 0.03852
A7: Allowed City Tax Deductions | H7: State Utility Tax Rate w/ Loss Adjustment = | I7: =IF(G1="E",($I$5-($I$5*$I$12)),($I$6-($I$6*$I$11))) -> 0.0384552314
A8: Credit Losses | C8: Y | D8: =IF(C8="Y",D5*I10,0) -> 7.51338012 | H8: State Filing Fee Rate = | I8: =+'Annual Filing Fee'!A1 -> 0.004
A9: State Utility Tax | C9: N | D9: =IF(C9="Y",D5*I7,0) -> 0 | H9: State Filing Fee w/ Loss Adjustment = | I9: =$I$8-($I$8*$I$10) -> 0.003971212
A10: State Filing Fee | C10: N | D10: =IF(C10="Y",D5*I9,0) -> 0 | H10: Bad Debts Rate = | I10: =+SUMIF($H$11:$H$12,G1,I11:I12) -> 0.007197
A11: City Tax | C11: Y | D11: =IF(C11="Y",D4-D4*I7-D4*I9-D4*I10,0) -> 41.77855343 | H11: G | I11: =+'3.05 G'!E12 -> 0.004198
A12: Total Deductions | D12: =SUM(D8:D11) -> 49.29193355 | H12: E | I12: =+'3.04 E'!E12 -> 0.007197
A14: Net City Tax Taxable Revenue | D14: =D5-D12 -> 994.6680665 | H14: Grossed-up City Tax Rate to Use in CLX = | I14: =ROUND(I3,5) -> 0.04396
A15: City Tax Payable | D15: =D14*K1 -> 41.77605879
A16: Additional State Utility Tax due to City Tax | D16: =D4*I7 -> 1.690491972
A17: Additional State Filing Fee due to City Tax | D17: =D4*I8 -> 0.17584
A18: Additional Credit Losses due to City Tax | D18: =D4*I10 -> 0.31638012
G19: Y
A20: Total Cost due to City Tax | D20: =SUM(D15:D18) -> 43.95877088 | F20: =ABS(IF(ROUND(F25,0)<>0,F25,0))+IF(ABS(ROUND(D22,0)-ABS(ROUND(F25,0)))=0,ABS(D22)+ABS(F25),0)+ABS(IF(ABS(D22)<>0,D22,0)) -> 0.004952870238 | G20: N
A22: Difference between collected and paid | D22: =+D4-D20 -> 0.001229116586 | E22: =+D22/D4 -> 2.795988594e-05 | F22: [Hit "Refresh" button until F25 and D22 are near zero]
F23: [Manual adjustment of I3 is necessary in some cases]
A25: Difference between City Tax Deduction and City Tax Paid | F25: =IF(C11="Y",D11-D15,0) -> 0.002494637066
A27: Difference in collection resulting from using SAP rate = | F27: =D20-(D3*I14) -> -0.001229116586

Sheet Muni.Tax- G
F1: Energy | G1: G | H1: Ordinance City Tax Rate = | K1: 0.042
A3: Total Bill Excluding City Tax and City Tax Related Additional Revenue | D3: 1000 | F3: Calculated Grossed-up City Tax Rate = | I3: 0.04394750151
A4: City Tax and City Tax Related Additional Revenue | D4: =ROUND(D3*I14,2) -> 43.95
A5: Gross Taxable Revenue | D5: =D3+D4 -> 1043.95 | H5: Electric State Utility Tax Rate = | I5: =+'Pub Util Tax'!D3 -> 0.038734
H6: Natural Gas State Utility Tax Rate = | I6: =+'Pub Util Tax'!D4 -> 0.03852
A7: Allowed City Tax Deductions | H7: State Utility Tax Rate w/ Loss Adjustment = | I7: =IF(G1="E",($I$5-($I$5*$I$12)),($I$6-($I$6*$I$11))) -> 0.03835829304
A8: Credit Losses | C8: Y | D8: =IF(C8="Y",D5*I10,0) -> 4.3825021 | H8: State Filing Fee Rate = | I8: =+'Annual Filing Fee'!A1 -> 0.004
A9: State Utility Tax | C9: N | D9: =IF(C9="Y",D5*I7,0) -> 0 | H9: State Filing Fee w/ Loss Adjustment = | I9: =$I$8-($I$8*$I$10) -> 0.003983208
A10: State Filing Fee | C10: N | D10: =IF(C10="Y",D5*I9,0) -> 0 | H10: Bad Debts Rate = | I10: =+SUMIF($H$11:$H$12,G1,I11:I12) -> 0.004198
A11: City Tax | C11: Y | D11: =IF(C11="Y",D4-D4*I7-D4*I9-D4*I10,0) -> 41.90458893 | H11: G | I11: =+'3.05 G'!E12 -> 0.004198
A12: Total Deductions | D12: =SUM(D8:D11) -> 46.28709103 | H12: E | I12: 0.007197
A14: Net City Tax Taxable Revenue | D14: =D5-D12 -> 997.662909 | H14: Grossed-up City Tax Rate to Use in CLX = | I14: =ROUND(I3,5) -> 0.04395
A15: City Tax Payable | D15: =D14*K1 -> 41.90184218
A16: Additional State Utility Tax due to City Tax | D16: =D4*I7 -> 1.685846979
A17: Additional State Filing Fee due to City Tax | D17: =D4*I8 -> 0.1758
A18: Additional Credit Losses due to City Tax | D18: =D4*I10 -> 0.1845021
G19: Y
A20: Total Cost due to City Tax | D20: =SUM(D15:D18) -> 43.94799126 | F20: =ABS(IF(ROUND(F25,0)<>0,F25,0))+IF(ABS(ROUND(D22,0)-ABS(ROUND(F25,0)))=0,ABS(D22)+ABS(F25),0)+ABS(IF(ABS(D22)<>0,D22,0)) -> 0.006764240767 | G20: N
A22: Difference between collected and paid | D22: =+D4-D20 -> 0.002008744122 | E22: =+D22/D4 -> 4.570521325e-05 | F22: [Hit "Refresh" button until F25 and D22 are near zero]
F23: [Manual adjustment of I3 is necessary in some cases]
A25: Difference between City Tax Deduction and City Tax Paid | F25: =IF(C11="Y",D11-D15,0) -> 0.002746752522
A27: Difference in collection resulting from using SAP rate = | F27: =D20-(D3*I14) -> -0.002008744122

Sheet 3.04 E
C1: EXH. SEF-3 page 3 of 3
A2: PUGET SOUND ENERGY - ELECTRIC
A3: ELECTRIC RESULTS OF OPERATIONS
A4: 2022 GENERAL RATE CASE
A5: 12 MONTHS ENDED JUNE 30, 2021
A6: CONVERSION FACTOR
A9: LINE
A10: NO. | B10: DESCRIPTION
A12: 12 | B12: BAD DEBTS | E12: 0.007197
A13: 13 | B13: ANNUAL FILING FEE | E13: 0.002
A14: 14 | B14: STATE UTILITY TAX ( 3.8455% - ( LINE 1 * 3.8455% ) ) | D14: 0.038734 | E14: 0.038455
A15: 15
A16: 16 | B16: SUM OF TAXES OTHER | E16: 0.047652
A17: 17
A18: 18 | B18: CONVERSION FACTOR EXCLUDING FEDERAL INCOME TAX ( 1 - LINE 17 ) | E18: 0.952348
A19: 19 | B19: FIT | D19: 0.21 | E19: 0.199993
A20: 20 | B20: CONVERSION FACTOR INCL FEDERAL INCOME TAX ( LINE 18 - LINE 19 ) | E20: 0.752355
E23: =1/E20 -> 1.329159772

Sheet 3.05 G
C1: EXH. SEF-8 page 3 of 3
B2: PUGET SOUND ENERGY - GAS
B3: GAS RESULTS OF OPERATIONS
B4: 2022 GENERAL RATE CASE
B5: 12 MONTHS ENDED JUNE 30, 2021
B6: CONVERSION FACTOR
A9: LINE
A10: NO. | B10: DESCRIPTION
A12: 12 | B12: BAD DEBTS | E12: 0.004198
A13: 13 | B13: ANNUAL FILING FEE | E13: 0.002
A14: 14 | B14: STATE UTILITY TAX ( 3.8358% - ( LINE 1 * 3.8358% ) ) | D14: 0.03852 | E14: 0.038358
A15: 15
A16: 16 | B16: SUM OF TAXES OTHER | E16: 0.044556
A17: 17
A18: 18 | B18: CONVERSION FACTOR EXCLUDING FEDERAL INCOME TAX ( 1 - LINE 17 ) | E18: 0.955444
A19: 19 | B19: FIT | D19: 0.21 | E19: 0.200643
A20: 20 | B20: CONVERSION FACTOR INCL FEDERAL INCOME TAX ( LINE 18 - LINE 19 ) | E20: 0.754801

Sheet Annual Filing Fee
A1: 0.004 | B1: Link updated as of 11/30/2022 | D1: http://apps.leg.wa.gov/rcw/default.aspx?cite=80.24.010
A2: RCW 80.24.010
A3: Companies to file reports of gross revenue and pay fees—Delinquent fee payments.
A4: Every public service company subject to regulation by the commission shall, on or before the date specified by the commission for filing annual reports under RCW 80.04.080, file with the commission a statement on oath showing its gross operating revenue from intrastate operations for the preceding calendar year or portion thereof and pay to the commission a fee equal to one-tenth of one percent of the first fifty thousand dollars of gross operating revenue, plus four-tenths of one percent of any gross operating revenue in excess of fifty thousand dollars: PROVIDED, That the commission may, by rule, set minimum fees that do not exceed the cost of collecting the fees. The commission may by rule waive any or all of the minimum fee established pursuant to this section. | B4: =+B3*(A1/2) -> 0
A5: The percentage rates of gross operating revenue to be paid in any year may be decreased by the commission for any class of companies subject to the payment of such fees, by general order entered before March 1st of such year, and for such purpose such companies shall be classified as follows:
A6: Electrical, gas, water, telecommunications, and irrigation companies shall constitute class one. Every other company subject to regulation by the commission, for which regulatory fees are not otherwise fixed by law shall pay fees as herein provided and shall constitute additional classes according to kinds of businesses engaged in.
A7: Any payment of the fee imposed by this section made after its due date shall include a late fee of two percent of the amount due. Delinquent fees shall accrue interest at the rate of one percent per month.
A8: [ 2022 c 159 § 1; 2003 c 296 § 1; 1994 c 83 § 1; 1990 c 48 § 1; 1985 c 450 § 14; 1961 c 14 § 80.24.010. Prior: 1955 c 125 § 2; prior: 1939 c 123 § 1, part; 1937 c 158 § 1, part; 1929 c 107 § 1, part; 1923 c 107 § 1, part; 1921 c 113 § 1, part; RRS § 10417, part.]

Sheet Pub Util Tax
A1: State Utility Tax | C1: Link updated as of 12/27/2020
A2: https://dor.wa.gov/find-taxes-rates/other-taxes/public-utility-tax
C3: Electric | D3: =+B22 -> 0.038734
C4: Gas | D4: =+B24 -> 0.03852
A5: Home
A7: Taxes & rates
A9: Other taxes
A11: Public utility tax
A12: Print
A13: Public utility tax
A14: What is the public utility tax?
A15: It is a tax on public service businesses, including businesses that engage in transportation, communications, and the supply of energy, natural gas, and water. The tax is in lieu of the business and occupation (B&O) tax.
A16: How do I pay the tax?
A17: Effective July 2005, the Public Utility Tax became an addendum to the Combined Excise Tax Return.
A18: What rate do I pay?
A19: There are different rates, depending on the specific utility activity:
A20: Activity | B20: Rate
A21: Distribution of water | B21: 0.05029
A22: Generation/distribution of electrical power | B22: 0.038734
A23: Log transportation | B23: 0.013696
A24: Telegraph companies, distribution of natural gas, and collection of sewerage | B24: 0.03852
A25: Urban transportation and watercraft vessels under 65 feet in length | B25: 0.00642
A26: Railroads, railroad car companies, motor transportation and all other public service businesses | B26: 0.01926
A27: What are the funds used for?
A28: The majority of the funds are distributed into the state general fund. A portion, however, provides financial assistance to local governments for maintenance of public works facilities.
A29: More Information
A44: =+#REF! -> 
